bitfinex-derivatives/quotes_ETHF0:USTF0_20250105
["timestamp","ask_amount","ask_price","bid_price","bid_amount"]
[1736066223726,2.6051,3622.3,3621.9,0.8686]
[1736066223927,2.6051,3622.3,3622.2,0.27612]
[1736066224130,2.6051,3622.3,3621.9,4.0764]
[1736066224433,2.6051,3622.3,3622.2,0.27612]
[1736066224832,2.6051,3622.3,3622.0,0.27613]
[1736066225034,2.6051,3622.3,3622.1,0.27613]
[1736066225631,2.6051,3622.3,3621.9,4.0764]
[1736066225832,2.6051,3622.3,3622.0,0.27614]
[1736066226021,2.6051,3622.3,3622.1,0.27613]
[1736066227827,0.8785,3622.3,3622.2,0.27612]
[1736066228030,1.698,3622.6,3622.0,0.8066]
[1736066228230,2.5657,3622.6,3622.3,0.27611]
[1736066231140,2.5657,3622.6,3622.1,2.07977618]
[1736066231334,2.5657,3622.6,3622.4,2.07977618]
[1736066231540,2.5657,3622.6,3622.5,0.2761]
[1736066231937,2.5657,3622.6,3622.2,0.8241]
[1736066232248,2.5657,3622.6,3622.4,0.2761]
[1736066234149,2.5657,3622.6,3622.2,7.33339452]
[1736066234348,2.5657,3622.6,3622.5,0.2761]
[1736066234848,2.5657,3622.6,3622.4,0.27611]
[1736066235748,2.5657,3622.6,3622.4,0.2761]
[1736066236348,2.5657,3622.6,3622.2,7.33339452]
[1736066236543,2.5657,3622.6,3622.3,0.27611]
[1736066237347,2.8418,3622.6,3622.3,0.27611]
[1736066238648,2.8418,3622.6,3622.2,6.50929452]
[1736066238848,2.8418,3622.6,3622.3,0.27611]
[1736066239444,2.5657,3622.6,3622.3,0.27611]
[1736066240552,2.84179,3622.6,3622.3,0.27611]
[1736066243053,0.2761,3622.5,3622.2,0.27612]
[1736066243252,2.8418,3622.6,3622.2,0.27612]
[1736066243755,0.2761,3622.5,3622.2,0.27612]
[1736066244152,0.2761,3622.5,3622.1,6.50929452]
[1736066244453,3.57222932,3622.6,3622.1,7.51582384]
[1736066244653,0.27611,3622.4,3622.1,7.51582384]
[1736066245050,0.27611,3622.4,3622.1,7.79195384]
[1736066245453,3.57222932,3622.6,3622.1,7.51582384]
[1736066245754,0.27612,3622.2,3622.1,7.51582384]
[1736066246058,0.27612,3622.2,3622.1,1.00652932]
[1736066246258,0.27613,3622.1,3622.0,6.50929452]
[1736066246557,1.09813,3622.1,3622.0,6.50929452]
[1736066247453,1.09813,3622.1,3621.7,0.27616]
[1736066247655,1.6871,3622.0,3621.7,0.27616]
[1736066247855,1.6871,3622.0,3621.5,7.59629452]
[1736066248254,1.6871,3622.0,3621.7,0.27615]
[1736066249257,1.6871,3622.0,3621.8,0.27615]
[1736066253057,1.6871,3622.0,3621.6,8.59132047]
[1736066253257,1.6871,3622.0,3621.9,0.27615]
[1736066253458,1.6871,3622.0,3621.6,8.59132047]
[1736066253657,1.6871,3622.0,3621.8,0.27615]
[1736066254061,1.6871,3622.0,3621.7,0.27616]
[1736066254261,1.6871,3622.0,3621.8,0.27615]
[1736066254657,1.6871,3622.0,3621.8,6.78544452]
[1736066255365,1.6871,3622.0,3621.8,6.50929452]
[1736066255657,1.6871,3622.0,3621.8,6.78544452]
[1736066257158,1.6871,3622.0,3621.8,6.50929452]
[1736066258162,1.6871,3622.0,3621.5,8.69408394]
[1736066258163,0.27615,3621.9,3621.6,6.50929452]
[1736066259267,0.27615,3621.9,3621.5,0.27617]
[1736066259765,4.11631285,3622.0,3621.6,0.27617]
[1736066261359,3.84017285,3622.0,3621.6,0.27617]
[1736066261554,0.27615,3621.9,3621.5,0.27617]
[1736066261753,0.27616,3621.8,3621.5,0.27617]
[1736066261967,0.27617,3621.7,3621.4,6.50929452]
[1736066262153,7.04797285,3622.0,3621.4,6.50929452]
[1736066262359,0.8899,3621.6,3621.4,6.78547452]
[1736066262558,1.7541,3621.5,3621.4,6.78547452]
[1736066263162,1.7541,3621.5,3621.4,6.50929452]
[1736066263366,2.03028,3621.5,3621.4,6.50929452]
[1736066263664,1.7541,3621.5,3621.3,6.50929452]
[1736066263860,0.27618,3621.4,3621.3,6.50929452]
[1736066265567,0.2762,3621.3,3620.9,0.27622]
[1736066269064,1.7541,3621.5,3620.7,8.42789452]
[1736066269269,1.7541,3621.5,3620.9,3.2078]
[1736066269569,1.7541,3621.5,3621.3,0.27619]
[1736066269768,1.7541,3621.5,3621.4,0.27618]
[1736066272958,1.7541,3621.5,3620.9,9.71709452]
[1736066272959,1.7541,3621.5,3621.3,0.27619]
[1736066273163,1.7541,3621.5,3621.0,0.27622]
[1736066273372,1.7541,3621.5,3620.9,9.71709452]
[1736066273565,1.7541,3621.5,3621.1,0.2762]
[1736066273765,1.7541,3621.5,3620.9,3.2078]
[1736066274070,1.7541,3621.5,3621.2,0.2762]
[1736066277371,1.7541,3621.5,3620.9,3.2078]
[1736066277564,1.7541,3621.5,3621.2,0.2762]
[1736066277763,1.7541,3621.5,3620.8,1.7306]
[1736066277965,0.2762,3621.3,3620.9,0.27622]
[1736066278165,0.2762,3621.3,3621.0,0.27621]
[1736066278373,0.2762,3621.3,3620.9,0.27622]
[1736066278560,1.7541,3621.5,3620.8,2.8176]
[1736066278765,0.27619,3621.4,3621.0,0.27621]
[1736066280773,1.7541,3621.5,3620.8,2.8176]
[1736066281077,2.03028,3621.5,3621.1,0.2762]
[1736066281470,2.03028,3621.5,3621.2,0.8452]
[1736066282578,0.27619,3621.4,3621.2,0.8452]
[1736066282778,2.03028,3621.5,3621.2,0.8452]
[1736066283378,1.7541,3621.5,3620.8,7.15084737]
[1736066283577,1.7541,3621.5,3621.0,0.8456]
[1736066284082,0.2762,3621.3,3621.0,0.8456]
[1736066284276,1.7541,3621.5,3621.0,0.8456]
[1736066284774,1.7541,3621.5,3620.9,0.27622]
[1736066284775,0.2762,3621.3,3620.9,0.27622]
[1736066285083,2.08202595,3621.4,3620.7,4.33324737]
[1736066285279,0.27622,3621.0,3620.7,4.33324737]
[1736066285483,2.5564,3620.9,3620.7,4.33324737]
[1736066285682,2.83262,3620.9,3620.7,4.33324737]
[1736066286479,2.5564,3620.9,3620.5,3.2078]
[1736066286679,2.83263,3620.9,3620.5,3.48405]
[1736066286982,2.83263,3620.9,3620.6,0.27625]
[1736066287681,0.27624,3620.7,3620.5,3.2078]
[1736066288983,0.27623,3620.8,3620.5,3.2078]
[1736066289776,0.27623,3620.8,3620.5,3.48405]
[1736066290183,2.83262,3620.9,3620.5,3.48405]
[1736066290489,2.83263,3620.9,3620.5,3.48405]
[1736066290986,2.5564,3620.9,3620.6,0.27624]
[1736066291386,2.83262,3620.9,3620.5,3.48405]
[1736066292086,2.83262,3620.9,3620.5,0.27625]
[1736066292279,2.83262,3620.9,3620.5,4.60949737]
[1736066294188,2.5564,3620.9,3620.6,0.27624]
[1736066295892,2.5564,3620.9,3620.4,7.54104737]
[1736066296087,2.5564,3620.9,3620.7,0.27624]
[1736066296292,2.5564,3620.9,3620.5,4.33324737]
[1736066296482,2.5564,3620.9,3620.8,0.27623]
[1736066296883,2.5564,3620.9,3620.6,0.8632]
[1736066297083,2.5564,3620.9,3620.7,0.27623]
[1736066298291,2.5564,3620.9,3620.8,0.27623]
[1736066298485,2.5564,3620.9,3620.5,4.33324737]
[1736066298684,2.5564,3620.9,3620.7,0.27623]
[1736066299191,2.5564,3620.9,3620.8,0.27623]
[1736066300693,3.2078,3621.2,3620.9,0.27622]
[1736066300890,4.9313,3621.2,3621.0,1.13821]
[1736066301486,4.9313,3621.2,3621.1,0.27621]
[1736066306696,1.7235,3621.2,3621.1,0.27621]
[1736066307296,1.7235,3621.2,3621.1,4.60945737]
[1736066313102,2.15307285,3621.4,3621.1,5.42024737]
[1736066313298,2.15307285,3621.4,3621.3,1.28331356]
[1736066314201,2.15307285,3621.4,3621.3,2.16891356]
[1736066315002,2.15307285,3621.7,3621.6,0.27617]
[1736066318495,4.74967285,3621.8,3621.5,6.23541787]
[1736066318702,4.74967285,3621.8,3621.6,0.27617]
[1736066319003,4.74967285,3621.8,3621.7,0.27616]
[1736066326405,4.74967285,3621.8,3621.7,1.28328356]
[1736066327405,2.5966,3621.8,3621.7,1.28328356]
[1736066328802,0.8576,3621.8,3621.7,1.28328356]
[1736066329108,3.51516522,3622.2,3621.9,0.27615]
[1736066329109,3.02207285,3622.1,3621.9,0.27615]
[1736066329311,3.02207285,3622.1,3621.9,1.28327356]
[1736066330402,0.869,3622.1,3621.9,1.28327356]
[1736066330802,0.869,3622.1,3621.9,1.00712356]
[1736066331609,1.14513,3622.1,3621.9,1.00712356]
[1736066332003,0.869,3622.1,3621.9,1.00712356]
[1736066332709,1.14513,3622.1,3621.9,1.00712356]
[1736066333410,2.15225356,3622.1,3621.8,0.27615]
[1736066335915,1.87612356,3622.1,3621.7,1.00712356]
[1736066336310,0.869,3622.1,3621.9,0.27614]
[1736066336513,0.869,3622.1,3621.7,1.00712356]
[1736066336809,0.869,3622.1,3621.8,0.27615]
[1736066339317,0.869,3622.1,3621.7,1.00712356]
[1736066339614,1.14513,3622.1,3621.8,0.27615]
[1736066340505,0.869,3622.1,3621.8,0.27615]
[1736066340708,0.869,3622.1,3621.7,1.00712356]
[1736066340912,0.869,3622.1,3621.8,0.27615]
[1736066341113,0.869,3622.1,3621.7,1.00712356]
[1736066341309,0.869,3622.1,3621.9,0.27615]
[1736066341622,3.01387285,3622.2,3621.6,4.34269431]
[1736066341919,2.15307285,3622.2,3622.1,0.27613]
[1736066342323,2.15307285,3622.2,3622.1,1.14443]
[1736066343418,2.6125,3622.7,3622.5,0.2761]
[1736066343613,2.6125,3622.7,3622.5,1.28322356]
[1736066343816,2.15307285,3622.8,3622.5,1.00712356]
[1736066344026,2.15307285,3622.8,3622.7,1.28321356]
[1736066345020,1.681,3623.1,3623.0,0.27606]
[1736066345216,1.681,3623.1,3623.0,1.00712356]
[1736066345517,1.681,3623.1,3623.0,1.28318356]
[1736066349425,3.2078,3623.2,3623.0,1.00712356]
[1736066349731,2.15307285,3623.5,3623.4,0.27603]
[1736066349932,2.15307285,3623.5,3623.4,2.29027712]
[1736066350228,2.15307285,3623.5,3623.4,2.35579146]
[1736066351632,2.15307285,3623.5,3623.4,1.36203]
[1736066353337,3.23903522,3623.7,3623.6,2.35578146]
[1736066353629,3.23903522,3623.7,3623.6,5.56358146]
[1736066353630,1.15548009,3623.7,3623.6,5.56358146]
[1736066354630,4.31014383,3623.9,3623.8,0.27601]
[1736066357336,2.539,3624.7,3624.0,0.276]
[1736066357634,2.539,3624.7,3624.0,5.56356146]
[1736066358032,1.6667,3624.7,3624.0,5.56356146]
[1736066360033,1.6667,3624.7,3624.6,0.27595]
[1736066362136,3.2078,3625.6,3624.5,3.2078]
[1736066362441,0.8672,3624.6,3624.5,3.48376]
[1736066362641,0.8672,3624.6,3624.5,4.56976]
[1736066363041,0.8672,3624.6,3624.1,3.2078]
[1736066363340,0.8672,3624.6,3624.5,0.27596]
[1736066363536,0.8672,3624.6,3624.4,2.07976146]
[1736066365142,0.8672,3624.6,3624.4,2.35572146]
[1736066365339,0.8672,3624.6,3624.5,0.27596]
[1736066365942,0.27589,3625.5,3625.0,0.27592]
[1736066366143,1.649,3625.5,3625.1,0.27591]
[1736066366745,1.649,3625.5,3625.2,0.2759]
[1736066367241,0.2759,3625.3,3625.0,0.27592]
[1736066367938,1.1031,3625.4,3624.8,1.086]
[1736066368142,1.1031,3625.4,3625.0,0.27591]
[1736066368344,1.1031,3625.4,3624.8,1.086]
[1736066368646,1.1031,3625.4,3625.0,0.27591]
[1736066368941,1.1031,3625.4,3625.1,0.27591]
[1736066370045,0.8272,3625.4,3625.3,0.2759]
[1736066372242,0.8272,3625.4,3625.2,0.2759]
[1736066372441,0.8272,3625.4,3625.3,0.2759]
[1736066373351,0.8272,3625.4,3625.0,0.27592]
[1736066373352,0.2759,3625.3,3625.0,0.27592]
[1736066373541,0.2759,3625.3,3624.8,1.086]
[1736066373741,0.2759,3625.3,3625.0,0.27592]
[1736066373742,3.2078,3625.2,3625.0,0.27592]
[1736066374252,3.2078,3625.2,3624.8,1.086]
[1736066374445,3.2078,3625.2,3625.1,0.27591]
[1736066375250,3.2078,3625.2,3625.0,0.27591]
[1736066375446,3.2078,3625.2,3625.1,0.27591]
[1736066379254,3.2078,3625.2,3624.8,1.086]
[1736066379552,3.2078,3625.2,3625.1,0.27591]
[1736066379748,3.2078,3625.2,3624.8,1.086]
[1736066379958,3.2078,3625.2,3624.5,3.2078]
[1736066380158,3.2078,3624.7,3623.9,2.07976146]
[1736066380348,0.27596,3624.5,3624.2,0.27598]
[1736066380953,2.0066,3624.6,3623.9,2.07976146]
[1736066381256,2.28255,3624.6,3624.4,0.27597]
[1736066382159,2.28255,3624.6,3624.3,0.27597]
[1736066382354,2.28255,3624.6,3623.9,2.07976146]
[1736066383753,2.28255,3624.6,3624.4,0.27597]
[1736066383951,2.28255,3624.6,3624.3,0.27597]
[1736066384151,2.0066,3624.6,3624.3,0.27597]
[1736066384447,0.27596,3624.5,3624.3,0.27597]
[1736066384649,0.27596,3624.5,3623.9,2.07976146]
[1736066384955,0.27596,3624.5,3624.2,0.27598]
[1736066385559,0.27597,3624.4,3624.1,0.27598]
[1736066385749,3.2078,3624.3,3624.2,0.27598]
[1736066387554,0.27599,3624.1,3623.8,0.27601]
[1736066387752,1.1598,3624.0,3623.6,1.085]
[1736066387953,1.1598,3624.0,3623.9,0.276]
[1736066390056,1.1598,3624.0,3623.5,4.33623872]
[1736066390359,3.2078,3623.9,3623.5,4.33623872]
[1736066390556,0.27603,3623.6,3623.5,4.33623872]
[1736066391760,0.27603,3623.6,3623.3,0.27605]
[1736066392367,0.27603,3623.6,3623.4,0.27604]
[1736066392662,0.27603,3623.6,3623.3,0.27605]
[1736066393659,0.27604,3623.5,3622.9,5.42123872]
[1736066393857,0.27604,3623.5,3623.1,0.27606]
[1736066393858,1.45714,3623.4,3623.1,0.27606]
[1736066394056,1.1811,3623.4,3623.1,0.27606]
[1736066394258,0.27605,3623.3,3623.1,0.27606]
[1736066396465,0.27605,3623.3,3622.8,2.07976146]
[1736066396466,1.45714,3623.4,3623.2,0.27606]
[1736066396669,1.1811,3623.4,3623.1,2.07976146]
[1736066396864,3.2078,3624.1,3623.1,2.07976146]
[1736066397068,0.8981,3624.0,3623.4,2.07976146]
[1736066397370,0.8981,3624.0,3623.7,0.27601]
[1736066397675,0.27601,3623.9,3623.7,0.27601]
[1736066400469,0.6221,3624.0,3623.3,2.07976146]
[1736066400665,0.8981,3624.0,3623.8,0.27601]
[1736066402172,0.6221,3624.0,3623.6,0.27602]
[1736066402375,0.27601,3623.8,3623.6,0.27602]
[1736066402874,0.27602,3623.8,3623.5,0.27603]
[1736066403571,0.27597,3624.4,3624.1,0.27598]
[1736066404777,0.27596,3624.5,3624.1,0.27598]
[1736066404980,0.27598,3624.3,3624.1,0.27598]
[1736066405173,0.5703,3624.2,3624.1,0.27598]
[1736066405567,0.5703,3624.2,3623.7,2.07976146]
[1736066405776,0.27599,3624.1,3623.9,0.276]
[1736066405978,0.6091,3624.0,3623.9,0.276]
[1736066406377,0.6091,3624.0,3623.8,0.27601]
[1736066407579,0.8851,3624.0,3623.7,0.27602]
[1736066408272,0.6091,3624.0,3623.7,0.27601]
[1736066408772,0.6091,3624.0,3623.5,1.086]
[1736066408976,0.6091,3624.0,3623.8,0.27601]
[1736066409676,0.6091,3624.0,3623.5,1.086]
[1736066409877,0.6091,3624.0,3623.7,0.27601]
[1736066410080,0.6091,3624.0,3623.5,1.086]
[1736066410476,0.8851,3624.0,3623.6,0.27602]
[1736066411079,0.8851,3624.0,3623.7,0.27602]
[1736066411278,3.7781,3624.2,3623.7,2.07976146]
[1736066411578,0.5703,3624.2,3624.1,0.27599]
[1736066411981,0.5703,3624.2,3624.0,0.276]
[1736066412180,0.8833,3624.1,3623.9,0.276]
[1736066412382,0.8833,3624.1,3623.7,2.07976146]
[1736066413880,0.8833,3624.1,3623.5,1.086]
[1736066414097,0.276,3624.0,3623.7,0.27602]
[1736066414883,0.8833,3624.1,3623.7,0.27602]
[1736066415083,1.15929,3624.1,3623.7,0.27602]
[1736066415280,1.15929,3624.1,3623.7,0.27601]
[1736066415678,0.8833,3624.1,3623.8,0.27601]
[1736066415888,0.8833,3624.1,3623.6,0.27603]
[1736066416083,0.8833,3624.1,3623.8,0.276]
[1736066416688,0.8833,3624.1,3623.9,0.276]
[1736066417086,0.8833,3624.1,3623.8,0.27601]
[1736066417690,0.8833,3624.1,3623.9,0.276]
[1736066418190,0.8833,3624.1,3623.6,0.27603]
[1736066418389,0.8833,3624.1,3624.0,0.276]
[1736066419083,0.8833,3624.1,3623.9,0.276]
[1736066419985,0.8833,3624.1,3624.0,0.276]
[1736066420386,0.8833,3624.1,3623.5,5.42223872]
[1736066420590,1.15929,3624.1,3623.8,0.27601]
[1736066420789,0.8833,3624.1,3623.7,0.27601]
[1736066421085,0.8833,3624.1,3623.6,4.33623872]
[1736066421290,0.27602,3623.7,3623.6,4.33623872]
[1736066422189,0.27604,3623.4,3623.2,4.33623872]
[1736066422391,0.4752,3623.3,3623.2,4.33623872]
[1736066423392,0.4752,3623.3,3623.2,4.61229872]
[1736066423591,0.4752,3623.3,3623.2,4.33623872]
[1736066423790,0.4752,3623.3,3623.1,0.27606]
[1736066424384,0.4752,3623.3,3623.0,3.2078]
[1736066424593,0.4752,3623.3,3623.2,0.27606]
[1736066425291,0.4752,3623.3,3622.9,4.33623872]
[1736066425491,0.4752,3623.3,3623.1,0.27606]
[1736066426994,0.75125,3623.3,3622.9,4.61231872]
[1736066427794,3.95905,3623.3,3622.9,4.61231872]
[1736066428198,3.95905,3623.3,3622.9,4.61230872]
[1736066428397,3.683,3623.3,3623.0,0.27607]
[1736066428602,3.683,3623.3,3623.1,0.27606]
[1736066429096,3.683,3623.3,3623.0,0.27607]
[1736066431101,0.27606,3623.2,3622.9,4.33623872]
[1736066431300,0.27606,3623.2,3622.9,4.61231872]
[1736066431500,0.74007,3623.1,3622.9,4.33623872]
[1736066431699,0.4574,3623.0,3622.9,4.33623872]
[1736066431907,0.4574,3623.0,3622.9,4.61231872]
[1736066433103,0.4574,3623.0,3622.9,4.33623872]
[1736066433302,0.4574,3623.0,3622.7,4.33623872]
[1736066433503,0.4574,3623.0,3622.8,0.27608]
[1736066433803,0.4574,3623.0,3622.7,4.33623872]
[1736066434004,0.73348,3623.0,3622.7,4.33623872]
[1736066434298,0.73348,3623.0,3622.7,4.61232872]
[1736066434500,0.73348,3623.0,3622.7,0.27609]
[1736066436503,0.4574,3623.0,3622.5,7.50200018]
[1736066436803,0.4574,3623.0,3622.9,0.27608]
[1736066437017,0.4574,3623.0,3622.5,4.33623872]
[1736066437197,0.4574,3623.0,3622.9,0.27608]
[1736066446703,0.4574,3623.0,3622.7,2.07976146]
[1736066447006,0.4574,3623.0,3622.6,4.33623872]
[1736066447203,0.27608,3622.9,3622.6,4.61233872]
[1736066447404,0.27609,3622.8,3622.6,4.33623872]
[1736066447697,0.4291,3622.7,3622.6,4.33623872]
[1736066447901,0.7052,3622.7,3622.6,4.33623872]
[1736066448103,0.4291,3622.7,3622.6,4.33623872]
[1736066448312,0.4291,3622.7,3622.5,4.61234872]
[1736066448514,0.4209,3622.6,3622.5,4.61234872]
[1736066449812,0.4209,3622.6,3622.5,0.27611]
[1736066450213,0.4209,3622.6,3622.4,4.33623872]
[1736066450518,0.4291,3622.5,3622.4,4.61235872]
[1736066452411,0.4291,3622.5,3622.4,0.27612]
[1736066453915,0.4291,3622.5,3622.4,4.61235872]
[1736066455316,0.4291,3622.5,3622.4,4.33623872]
[1736066455716,0.70521,3622.5,3622.4,4.33623872]
[1736066455912,0.4291,3622.5,3622.4,4.33623872]
[1736066456515,0.70521,3622.5,3622.4,4.33623872]
[1736066456717,0.70521,3622.5,3622.2,0.27613]
[1736066457319,0.4291,3622.5,3622.2,0.27613]
[1736066457722,0.4291,3622.5,3622.3,0.27612]
[1736066460927,0.4291,3622.5,3622.2,6.69213018]
[1736066461131,0.4291,3622.5,3622.2,4.61236872]
[1736066461435,0.4291,3622.5,3622.2,4.33623872]
[1736066461635,0.27612,3622.4,3622.2,4.33623872]
[1736066461834,0.27613,3622.3,3622.1,4.33623872]
[1736066462332,0.27613,3622.2,3622.1,4.33623872]
[1736066463241,0.27613,3622.2,3621.9,0.27615]
[1736066463432,0.4494,3622.1,3621.9,0.27615]
[1736066463639,0.8931,3622.0,3621.8,0.27616]
[1736066463935,0.8931,3622.0,3621.7,4.33623872]
[1736066464128,0.8931,3622.0,3621.9,0.27616]
[1736066465933,0.8931,3622.0,3621.9,4.61239872]
[1736066466840,0.4585,3622.0,3621.9,4.61239872]
[1736066468532,0.73465,3622.0,3621.9,3.75680408]
[1736066469935,0.27616,3621.9,3621.8,4.33838462]
[1736066470442,0.73465,3622.0,3621.8,4.33838462]
[1736066471443,0.73465,3622.0,3621.7,4.61455462]
[1736066471836,0.4585,3622.0,3621.7,4.61455462]
[1736066472136,0.27616,3621.9,3621.7,4.61455462]
[1736066473643,0.73465,3622.0,3621.7,0.27617]
[1736066474036,0.4585,3622.0,3621.6,4.82957483]
[1736066474340,0.4585,3622.0,3621.6,5.10575483]
[1736066474341,0.27616,3621.9,3621.6,5.10575483]
[1736066474749,3.6663,3622.0,3621.6,4.82957483]
[1736066474936,0.27617,3621.7,3621.6,4.33838462]
[1736066476238,0.27617,3621.7,3621.6,1.76608462]
[1736066476838,5.74606146,3622.0,3621.3,0.2762]
[1736066476839,0.27618,3621.6,3621.3,0.2762]
[1736066477041,0.4157,3621.5,3621.3,0.2762]
[1736066477242,0.69189,3621.5,3621.2,2.04229462]
[1736066477541,0.69189,3621.5,3621.3,0.2762]
[1736066478940,0.69189,3621.5,3621.0,2.07976146]
[1736066479234,0.69189,3621.5,3621.2,0.27621]
[1736066479435,1.10539,3621.5,3621.2,0.27621]
[1736066479634,1.10539,3621.5,3621.1,0.27621]
[1736066483941,0.8292,3621.5,3621.1,0.27621]
[1736066484148,0.8292,3621.5,3621.0,2.07976146]
[1736066484149,0.4157,3621.5,3621.0,2.07976146]
[1736066484346,0.4157,3621.5,3621.4,0.27619]
[1736066486145,2.15529606,3622.0,3621.9,0.27616]
[1736066486345,0.8573,3622.0,3621.9,0.27616]
[1736066494963,0.4119,3622.0,3621.9,0.27616]
[1736066500253,0.4402,3622.3,3621.8,1.086]
[1736066500455,0.9024,3622.3,3622.2,0.27613]
[1736066510367,0.9024,3622.3,3622.2,1.28261356]
[1736066514366,0.9024,3622.3,3622.0,1.00648356]
[1736066514571,0.9024,3622.3,3622.0,1.28263356]
[1736066514572,2.18501356,3622.3,3622.0,1.28263356]
[1736066516269,0.27614,3622.2,3621.9,1.36115]
[1736066516470,0.27614,3622.2,3621.9,2.36763356]
[1736066516871,0.27614,3622.1,3621.9,2.09148356]
[1736066517070,0.4374,3622.0,3621.9,2.09148356]
[1736066517274,0.4374,3622.0,3621.9,2.36764356]
[1736066517573,0.4374,3622.0,3621.9,1.28264356]
[1736066519273,0.4374,3622.0,3621.6,7.59429452]
[1736066519483,0.4496,3621.9,3621.8,0.27616]
[1736066521280,0.4496,3621.9,3621.8,1.28264356]
[1736066521977,0.4496,3621.9,3621.8,4.49044356]
[1736066522280,0.4496,3621.9,3621.8,4.93834356]
[1736066523183,0.4496,3621.9,3621.8,21.01374707]
[1736066523681,0.4622,3622.3,3622.2,0.27613]
[1736066523878,0.4622,3622.3,3622.2,2.28909712]
[1736066524275,0.4622,3622.3,3622.2,1.28261356]
[1736066524473,0.4622,3622.3,3622.2,4.49041356]
[1736066527583,0.4622,3622.3,3622.2,10.99486041]
[1736066530585,0.4622,3622.3,3622.2,4.49041356]
[1736066531785,0.4622,3622.3,3622.2,13.1844975]
[1736066531985,0.4622,3622.3,3622.2,9.9766975]
[1736066536682,0.4622,3622.3,3622.2,18.45865528]
[1736066536885,0.4622,3622.3,3622.2,19.46513884]
[1736066537585,0.4622,3622.3,3622.2,18.45865528]
[1736066537886,0.4622,3622.3,3622.2,19.46513884]
[1736066538089,0.4622,3622.3,3622.2,18.45865528]
[1736066538277,0.4622,3622.3,3622.2,9.76457134]
[1736066541190,0.4622,3622.3,3622.2,10.7710549]
[1736066541491,0.4622,3622.3,3622.2,9.76457134]
[1736066544094,0.4622,3622.3,3622.2,12.97237134]
[1736066545986,0.4622,3622.3,3622.2,11.96588778]
[1736066546388,0.4622,3622.3,3622.2,12.97237134]
[1736066547292,0.4622,3622.3,3622.2,12.69624134]
[1736066547491,0.4622,3622.3,3622.2,5.29928356]
[1736066547802,0.4622,3622.3,3622.2,1.00648356]
[1736066548692,0.73833,3622.3,3622.1,9.77543608]
[1736066548896,0.4622,3622.3,3622.2,6.5180019]
[1736066549104,0.73833,3622.3,3622.2,4.4023019]
[1736066549398,0.73833,3622.3,3622.2,2.2891019]
[1736066550393,0.73833,3622.3,3621.8,1.28264356]
[1736066550394,0.27614,3622.1,3621.8,1.28264356]
[1736066550697,3.2078,3622.2,3621.8,1.00648356]
[1736066550899,0.87657378,3622.3,3622.0,1.00648356]
[1736066551093,0.87657378,3622.3,3622.2,1.00648356]
[1736066551490,0.87657378,3622.3,3622.2,1.28261356]
[1736066551894,0.4622,3622.3,3622.2,1.28261356]
[1736066554398,0.4622,3622.3,3622.1,0.27613]
[1736066554598,0.4622,3622.3,3622.1,1.36113]
[1736066554898,0.4622,3622.3,3622.1,1.085]
[1736066555197,0.4622,3622.3,3622.1,0.27614]
[1736066555198,2.62143644,3622.3,3622.1,0.27614]
[1736066555499,2.62143644,3622.3,3622.1,1.36114]
[1736066555701,2.62143644,3622.3,3622.2,0.69933]
[1736066556499,2.62143644,3622.3,3622.2,0.4232]
[1736066557197,2.62143644,3622.3,3622.1,1.085]
[1736066557894,2.89756644,3622.3,3622.1,1.085]
[1736066558906,0.27613,3622.2,3622.1,1.085]
[1736066559200,0.27615,3622.1,3621.8,8.69043608]
[1736066559405,0.4419,3622.1,3621.8,8.69043608]
[1736066559796,0.27616,3621.9,3621.8,8.69043608]
[1736066560193,0.27615,3622.0,3621.8,8.69043608]
[1736066560392,0.4544,3621.9,3621.8,8.69043608]
[1736066560592,0.4544,3621.9,3621.6,0.27617]
[1736066560801,0.4662,3621.8,3621.6,0.27617]
[1736066561003,0.4662,3621.8,3621.7,0.27617]
[1736066561194,3.23885466,3622.0,3621.6,2.08159548]
[1736066561498,3.23885466,3622.0,3621.9,0.27616]
[1736066562107,2.15847252,3622.2,3622.0,0.27615]
[1736066562302,2.15847252,3622.2,3621.9,0.27615]
[1736066562598,2.15847252,3622.2,3621.8,1.085]
[1736066562802,2.43461252,3622.2,3621.8,1.085]
[1736066563202,2.15847252,3622.2,3621.8,1.085]
[1736066563404,0.27615,3622.0,3621.8,1.085]
[1736066563798,0.72266,3621.9,3621.8,1.085]
[1736066564000,0.4465,3621.9,3621.8,1.085]
[1736066564601,2.60497252,3621.9,3621.8,1.085]
[1736066565898,0.4465,3621.9,3621.8,1.085]
[1736066567105,0.72266,3621.9,3621.8,1.085]
[1736066568503,2.88113252,3621.9,3621.8,1.085]
[1736066568801,2.60497252,3621.9,3621.8,1.085]
[1736066569001,2.15847252,3621.9,3621.8,1.5406]
[1736066569208,2.15847252,3621.9,3621.8,0.73176]
[1736066570008,2.15847252,3622.0,3621.8,0.4556]
[1736066570199,2.15847252,3622.0,3621.9,0.71616]
[1736066570902,2.15847252,3622.0,3621.9,2.79775548]
[1736066571098,0.9206,3622.3,3621.9,2.52159548]
[1736066571299,0.9206,3622.3,3622.1,0.27613]
[1736066571701,0.9206,3622.3,3622.2,0.4392]
[1736066572607,5.36627252,3622.4,3622.3,0.27613]
[1736066572608,3.2078,3622.4,3622.3,0.27613]
[1736066572811,2.15847252,3622.5,3622.3,0.4537]
[1736066573310,2.15847252,3622.5,3622.4,0.27612]
[1736066573904,2.15847252,3622.7,3622.6,0.2761]
[1736066575309,0.4528,3622.8,3622.6,0.2761]
[1736066575710,0.4528,3622.8,3622.7,0.4401]
[1736066576312,0.4528,3622.8,3622.7,1.44633704]
[1736066576514,0.4528,3622.8,3622.7,1.72242704]
[1736066576716,2.15847252,3622.9,3622.8,0.27609]
[1736066577108,2.15847252,3622.9,3622.8,0.72869]
[1736066578218,5.36627252,3623.0,3622.8,0.72869]